[Event "*** Titled Tuesday Blitz"]
[Site "Chess.com"]
[Date "2019.03.05"]
[Round "2"]
[White "Jenia84"]
[Black "gunslinger222"]
[Result "0-1"]
[WhiteElo "2170"]
[BlackElo "2200"]
[TimeControl "180+2"]
[EndTime "13:21:23 PST"]
[Termination "gunslinger222 won by resignation"]

1. e4 {[%clk 0:02:59]} 1... e6 {[%clk 0:03:00.6]} 2. d4 {[%clk 0:02:58.7]} 2...
d5 {[%clk 0:03:01.6]} 3. Nc3 {[%clk 0:02:59.6]} 3... Bb4 {[%clk 0:03:02.3]} 4.
e5 {[%clk 0:02:57.4]} 4... Ne7 {[%clk 0:03:03.1]} 5. a3 {[%clk 0:02:56]} 5...
Bxc3+ {[%clk 0:03:03.9]} 6. bxc3 {[%clk 0:02:57.1]} 6... c5 {[%clk 0:03:03.8]}
7. Qg4 {[%clk 0:02:55.1]} 7... Kf8 {[%clk 0:03:03.8]} 8. h4 {[%clk 0:02:55.2]}
8... h5 {[%clk 0:03:04.1]} 9. Qd1 {[%clk 0:02:52.3]} 9... Qa5 {[%clk 0:03:04.2]}
10. Bd2 {[%clk 0:02:49]} 10... Qa4 {[%clk 0:03:02.9]} 11. Bd3 {[%clk 0:02:43]}
11... Nbc6 {[%clk 0:02:57.7]} 12. Nf3 {[%clk 0:02:41.9]} 12... cxd4 {[%clk
0:02:56.1]} 13. cxd4 {[%clk 0:02:42.1]} 13... Nxd4 {[%clk 0:02:56.5]} 14. Bb4
{[%clk 0:02:28.3]} 14... Nxf3+ {[%clk 0:02:51]} 15. Qxf3 {[%clk 0:02:26.7]}
15... a5 {[%clk 0:02:51.2]} 16. Bg6 {[%clk 0:02:14.3]} 16... Qe8 {[%clk
0:02:42.7]} 17. Bd6 {[%clk 0:02:12.6]} 17... Kg8 {[%clk 0:02:31.9]} 18. Bd3
{[%clk 0:02:08.8]} 18... Bd7 {[%clk 0:02:17.4]} 19. Rb1 {[%clk 0:02:08.4]} 19...
Bc6 {[%clk 0:02:17.8]} 20. O-O {[%clk 0:02:07.7]} 20... Nc8 {[%clk 0:02:18]} 21.
Bc5 {[%clk 0:02:03.2]} 21... Qd7 {[%clk 0:02:08.6]} 22. Qg3 {[%clk 0:01:57.8]}
22... d4 {[%clk 0:02:04.2]} 23. f4 {[%clk 0:01:52.6]} 23... Qd5 {[%clk
0:02:01.6]} 24. Bb6 {[%clk 0:01:38.8]} 24... Nxb6 {[%clk 0:01:58.6]} 25. Rxb6
{[%clk 0:01:38.6]} 25... Qc5 {[%clk 0:01:45.9]} 26. Rbb1 {[%clk 0:01:35.5]}
26... Kf8 {[%clk 0:01:33.8]} 27. f5 {[%clk 0:01:35.1]} 27... Ke7 {[%clk
0:01:34.5]} 28. f6+ {[%clk 0:01:26.6]} 28... gxf6 {[%clk 0:01:33.1]} 29. exf6+
{[%clk 0:01:25.2]} 29... Kd7 {[%clk 0:01:33.1]} 30. Rbe1 {[%clk 0:01:21.3]}
30... Rhg8 {[%clk 0:01:26.1]} 0-1

[Event "*** Titled Tuesday Blitz"]
[Site "Chess.com"]
[Date "2019.03.05"]
[Round "2"]
[White "Siemba"]
[Black "chesstatour"]
[Result "1-0"]
[WhiteElo "2098"]
[BlackElo "2012"]
[TimeControl "180+2"]
[EndTime "13:21:33 PST"]
[Termination "Siemba won on time"]

1. e4 {[%clk 0:03:01.9]} 1... c6 {[%clk 0:02:56.3]} 2. d4 {[%clk 0:03:01.9]}
2... d5 {[%clk 0:02:57.8]} 3. Nd2 {[%clk 0:03:02.7]} 3... dxe4 {[%clk 0:02:58]}
4. Nxe4 {[%clk 0:03:04.6]} 4... Nf6 {[%clk 0:02:59]} 5. Nxf6+ {[%clk 0:03:05.6]}
5... gxf6 {[%clk 0:02:59.6]} 6. c3 {[%clk 0:03:07.1]} 6... Bf5 {[%clk
0:02:56.7]} 7. Nf3 {[%clk 0:03:07.9]} 7... e6 {[%clk 0:02:55.4]} 8. g3 {[%clk
0:03:08.7]} 8... Qd5 {[%clk 0:02:54.8]} 9. Bg2 {[%clk 0:03:09.4]} 9... Qe4+
{[%clk 0:02:55.9]} 10. Qe2 {[%clk 0:03:10.2]} 10... Qxe2+ {[%clk 0:02:55.9]} 11.
Kxe2 {[%clk 0:03:12.1]} 11... Nd7 {[%clk 0:02:51.6]} 12. Re1 {[%clk 0:03:12.8]}
12... O-O-O {[%clk 0:02:51.4]} 13. Be3 {[%clk 0:03:11.8]} 13... Be4 {[%clk
0:02:32.7]} 14. Bh3 {[%clk 0:03:07.3]} 14... Bxf3+ {[%clk 0:02:12]} 15. Kxf3
{[%clk 0:03:09.2]} 15... h5 {[%clk 0:02:13.5]} 16. Rad1 {[%clk 0:03:03.7]} 16...
Bh6 {[%clk 0:02:05.4]} 17. Bxh6 {[%clk 0:03:01]} 17... Rxh6 {[%clk 0:02:07.3]}
18. c4 {[%clk 0:02:59.8]} 18... Kc7 {[%clk 0:01:57.7]} 19. Kg2 {[%clk
0:02:55.9]} 19... f5 {[%clk 0:01:50.4]} 20. d5 {[%clk 0:02:54.8]} 20... Nb6
{[%clk 0:01:23.7]} 21. d6+ {[%clk 0:02:48.1]} 21... Kd7 {[%clk 0:00:56.8]} 22.
c5 {[%clk 0:02:48.7]} 22... Nd5 {[%clk 0:00:34.7]} 23. a3 {[%clk 0:02:42.8]}
23... h4 {[%clk 0:00:28.2]} 24. Rd4 {[%clk 0:02:24.3]} 24... hxg3 {[%clk
0:00:13]} 25. hxg3 {[%clk 0:02:24.3]} 25... Rdh8 {[%clk 0:00:10.2]} 26. Rh1
{[%clk 0:02:24.8]} 26... f4 {[%clk 0:00:04.5]} 27. gxf4 {[%clk 0:02:15.7]} 27...
Rh4 {[%clk 0:00:05.3]} 28. Kg3 {[%clk 0:02:16]} 28... R4h7 {[%clk 0:00:02.4]}
29. f5 {[%clk 0:02:13.6]} 29... Rg8+ {[%clk 0:00:02.4]} 30. Kf3 {[%clk
0:02:13.5]} 30... Rgh8 {[%clk 0:00:02.3]} 31. fxe6+ {[%clk 0:02:14.4]} 31...
fxe6 {[%clk 0:00:03.2]} 32. Kg3 {[%clk 0:02:10.8]} 1-0

[Event "*** Titled Tuesday Blitz"]
[Site "Chess.com"]
[Date "2019.03.05"]
[Round "2"]
[White "GrigorGrigorov"]
[Black "Chess_for_enjoy"]
[Result "0-1"]
[WhiteElo "2827"]
[BlackElo "2641"]
[TimeControl "180+2"]
[EndTime "13:21:35 PST"]
[Termination "Chess_for_enjoy won by resignation"]

1. Nf3 {[%clk 0:03:01.9]} 1... d5 {[%clk 0:03:00.4]} 2. g3 {[%clk 0:03:01.1]}
2... Nf6 {[%clk 0:03:01.1]} 3. Bg2 {[%clk 0:03:01.8]} 3... c6 {[%clk 0:03:01.5]}
4. O-O {[%clk 0:03:00]} 4... Bf5 {[%clk 0:03:01.2]} 5. d3 {[%clk 0:02:59.2]}
5... e6 {[%clk 0:03:01.8]} 6. c4 {[%clk 0:02:58.7]} 6... Nbd7 {[%clk 0:02:58.4]}
7. cxd5 {[%clk 0:02:58.5]} 7... exd5 {[%clk 0:02:59.4]} 8. Nc3 {[%clk
0:02:58.4]} 8... Be7 {[%clk 0:03:00.2]} 9. Qc2 {[%clk 0:02:50.5]} 9... O-O
{[%clk 0:03:00.4]} 10. e4 {[%clk 0:02:51.2]} 10... dxe4 {[%clk 0:02:57.5]} 11.
dxe4 {[%clk 0:02:50.9]} 11... Bg6 {[%clk 0:02:58.9]} 12. Nh4 {[%clk 0:02:50.2]}
12... Qa5 {[%clk 0:02:46.9]} 13. Nxg6 {[%clk 0:02:49.9]} 13... hxg6 {[%clk
0:02:47.9]} 14. Bd2 {[%clk 0:02:31.3]} 14... Qb6 {[%clk 0:02:28.5]} 15. h3
{[%clk 0:02:24.1]} 15... Rfe8 {[%clk 0:02:27.5]} 16. Kh2 {[%clk 0:02:24.3]}
16... Ne5 {[%clk 0:02:22.6]} 17. Rad1 {[%clk 0:02:17.8]} 17... Rad8 {[%clk
0:02:09.4]} 18. Be3 {[%clk 0:02:16.4]} 18... Qa5 {[%clk 0:02:09.2]} 19. b3
{[%clk 0:02:14.9]} 19... Bb4 {[%clk 0:02:01.8]} 20. Na4 {[%clk 0:02:15.3]} 20...
b6 {[%clk 0:01:36.8]} 21. Kh1 {[%clk 0:02:08.2]} 21... Nh5 {[%clk 0:01:10.3]}
22. Kh2 {[%clk 0:02:07]} 22... Nf6 {[%clk 0:01:10.9]} 23. Bc1 {[%clk 0:02:07.8]}
23... b5 {[%clk 0:01:02.8]} 24. Nc5 {[%clk 0:02:01.1]} 24... Bxc5 {[%clk
0:00:55.1]} 25. Qxc5 {[%clk 0:02:01.2]} 25... Nd3 {[%clk 0:00:56.3]} 26. Qxc6
{[%clk 0:01:48.7]} 26... Nxc1 {[%clk 0:00:47]} 27. Qxc1 {[%clk 0:01:42.7]} 27...
Rxd1 {[%clk 0:00:38.5]} 28. Rxd1 {[%clk 0:01:41]} 28... Qxa2 {[%clk 0:00:39.4]}
29. Qe3 {[%clk 0:01:40.4]} 29... a5 {[%clk 0:00:35.9]} 30. Qe2 {[%clk
0:01:42.3]} 30... Qxe2 {[%clk 0:00:33.8]} 0-1

[Event "*** Titled Tuesday Blitz"]
[Site "Chess.com"]
[Date "2019.03.05"]
[Round "2"]
[White "NoGalloNoParty"]
[Black "Kimster98"]
[Result "0-1"]
[WhiteElo "2330"]
[BlackElo "2609"]
[TimeControl "180+2"]
[EndTime "13:21:41 PST"]
[Termination "Kimster98 won by checkmate"]

1. Nf3 {[%clk 0:03:00.9]} 1... d6 {[%clk 0:02:59.2]} 2. c4 {[%clk 0:03:01.2]}
2... e5 {[%clk 0:03:00]} 3. Nc3 {[%clk 0:03:01.3]} 3... f5 {[%clk 0:03:01.3]} 4.
d3 {[%clk 0:02:59.9]} 4... Nf6 {[%clk 0:03:02.4]} 5. g3 {[%clk 0:02:59.3]} 5...
g6 {[%clk 0:03:00.8]} 6. Bg2 {[%clk 0:03:00.3]} 6... Bg7 {[%clk 0:03:02.4]} 7.
O-O {[%clk 0:03:01.1]} 7... O-O {[%clk 0:03:04.3]} 8. Rb1 {[%clk 0:03:01.6]}
8... a5 {[%clk 0:03:05.1]} 9. a3 {[%clk 0:03:01.6]} 9... c6 {[%clk 0:03:05.4]}
10. b4 {[%clk 0:03:01.3]} 10... axb4 {[%clk 0:03:07.3]} 11. axb4 {[%clk
0:03:01.9]} 11... Nbd7 {[%clk 0:03:03.8]} 12. Bb2 {[%clk 0:02:35.2]} 12... Qe7
{[%clk 0:02:59.5]} 13. Nd2 {[%clk 0:02:27.1]} 13... Nb6 {[%clk 0:02:40.4]} 14.
c5 {[%clk 0:02:08.2]} 14... dxc5 {[%clk 0:02:37.7]} 15. bxc5 {[%clk 0:02:08.6]}
15... Qxc5 {[%clk 0:02:32.1]} 16. Qb3+ {[%clk 0:01:33.1]} 16... Kh8 {[%clk
0:02:32.9]} 17. Rfc1 {[%clk 0:01:33.1]} 17... Nbd7 {[%clk 0:02:11]} 18. Na4
{[%clk 0:01:22.5]} 18... Qa5 {[%clk 0:02:06.8]} 19. Ra1 {[%clk 0:01:18.2]} 19...
Qxd2 {[%clk 0:02:03.1]} 20. e3 {[%clk 0:01:08.2]} 20... b5 {[%clk 0:01:45.3]}
21. Nc3 {[%clk 0:00:36.8]} 21... Rxa1 {[%clk 0:01:43.5]} 22. Rxa1 {[%clk
0:00:37.3]} 22... Nc5 {[%clk 0:01:37.9]} 23. Qa3 {[%clk 0:00:30]} 23... b4
{[%clk 0:01:35]} 24. Qxb4 {[%clk 0:00:25]} 24... Nxd3 {[%clk 0:01:35.2]} 25. Qe7
{[%clk 0:00:22]} 25... Qxf2+ {[%clk 0:01:33.6]} 26. Kh1 {[%clk 0:00:22.5]} 26...
Qxb2 {[%clk 0:01:32.7]} 27. Ra7 {[%clk 0:00:22.7]} 27... Qc1+ {[%clk 0:01:29.9]}
28. Bf1 {[%clk 0:00:23.9]} 28... Qxf1# {[%clk 0:01:30.2]} 0-1

[Event "*** Titled Tuesday Blitz"]
[Site "Chess.com"]
[Date "2019.03.05"]
[Round "2"]
[White "emperor87"]
[Black "gmcorrales"]
[Result "0-1"]
[WhiteElo "2451"]
[BlackElo "2706"]
[TimeControl "180+2"]
[EndTime "13:21:45 PST"]
[Termination "gmcorrales won by resignation"]

1. Nf3 {[%clk 0:02:57]} 1... Nf6 {[%clk 0:02:59.9]} 2. g3 {[%clk 0:02:57.9]}
2... g6 {[%clk 0:03:00.8]} 3. Bg2 {[%clk 0:02:57.7]} 3... Bg7 {[%clk 0:03:01.8]}
4. O-O {[%clk 0:02:57.6]} 4... O-O {[%clk 0:03:02.7]} 5. c4 {[%clk 0:02:58.5]}
5... c5 {[%clk 0:03:03.3]} 6. Nc3 {[%clk 0:02:59.5]} 6... Nc6 {[%clk 0:03:03]}
7. e3 {[%clk 0:03:00.5]} 7... d5 {[%clk 0:02:52]} 8. b3 {[%clk 0:03:00.9]} 8...
d4 {[%clk 0:02:45.5]} 9. exd4 {[%clk 0:03:01.1]} 9... cxd4 {[%clk 0:02:46.4]}
10. Na4 {[%clk 0:02:58.4]} 10... e5 {[%clk 0:02:31.5]} 11. d3 {[%clk 0:02:57.6]}
11... e4 {[%clk 0:02:21.1]} 12. dxe4 {[%clk 0:02:57.7]} 12... Nxe4 {[%clk
0:02:21.5]} 13. Bb2 {[%clk 0:02:56.1]} 13... Nc3 {[%clk 0:02:14.1]} 14. Qd2
{[%clk 0:02:53.6]} 14... Re8 {[%clk 0:01:16.6]} 15. Rfe1 {[%clk 0:02:54.1]}
15... Rxe1+ {[%clk 0:01:12.5]} 16. Rxe1 {[%clk 0:02:53.3]} 16... Nxa4 {[%clk
0:01:13]} 17. bxa4 {[%clk 0:02:52.6]} 17... Be6 {[%clk 0:01:11.1]} 18. Rd1
{[%clk 0:02:39.1]} 18... Qa5 {[%clk 0:00:53.1]} 19. Qxa5 {[%clk 0:02:28.8]}
19... Nxa5 {[%clk 0:00:55]} 20. Bxd4 {[%clk 0:02:14.7]} 20... Rd8 {[%clk
0:00:55]} 21. Rd2 {[%clk 0:01:30.9]} 21... Nxc4 {[%clk 0:00:55.6]} 22. Rd3
{[%clk 0:01:29.4]} 22... Ne5 {[%clk 0:00:47]} 23. Nxe5 {[%clk 0:01:11.8]} 23...
Bxe5 {[%clk 0:00:46.7]} 24. Bxe5 {[%clk 0:01:13]} 24... Rxd3 {[%clk 0:00:47.4]}
25. Bxb7 {[%clk 0:01:14]} 25... Ra3 {[%clk 0:00:46.4]} 26. Bc6 {[%clk
0:01:13.7]} 26... Rxa2 {[%clk 0:00:46.2]} 27. Kg2 {[%clk 0:01:10.3]} 27... Bb3
{[%clk 0:00:42.2]} 28. Bd4 {[%clk 0:01:08.7]} 28... Bxa4 {[%clk 0:00:40.8]} 0-1

[Event "*** Titled Tuesday Blitz"]
[Site "Chess.com"]
[Date "2019.03.05"]
[Round "2"]
[White "chessking2151"]
[Black "jlucasvf"]
[Result "1-0"]
[WhiteElo "2583"]
[BlackElo "2727"]
[TimeControl "180+2"]
[EndTime "13:21:57 PST"]
[Termination "chessking2151 won by checkmate"]

1. d4 {[%clk 0:03:01.9]} 1... Nf6 {[%clk 0:02:59.9]} 2. Nf3 {[%clk 0:03:00.5]}
2... d5 {[%clk 0:03:00.5]} 3. c4 {[%clk 0:02:59.4]} 3... e6 {[%clk 0:03:01.6]}
4. Nc3 {[%clk 0:02:59.8]} 4... dxc4 {[%clk 0:03:01.7]} 5. Bg5 {[%clk 0:02:54.3]}
5... Bb4 {[%clk 0:03:00.5]} 6. e3 {[%clk 0:02:51.7]} 6... b5 {[%clk 0:03:00.6]}
7. a4 {[%clk 0:02:39.4]} 7... c6 {[%clk 0:02:59.5]} 8. Be2 {[%clk 0:02:32.6]}
8... h6 {[%clk 0:02:58.4]} 9. Bh4 {[%clk 0:02:33.4]} 9... g5 {[%clk 0:02:59.4]}
10. Bg3 {[%clk 0:02:34]} 10... Ne4 {[%clk 0:03:00.7]} 11. Qc2 {[%clk 0:02:35.2]}
11... Nxg3 {[%clk 0:02:46.3]} 12. hxg3 {[%clk 0:02:37.1]} 12... Bb7 {[%clk
0:02:39]} 13. Kf1 {[%clk 0:02:25.1]} 13... a6 {[%clk 0:02:34.9]} 14. Ne4 {[%clk
0:02:21.8]} 14... Be7 {[%clk 0:02:29]} 15. Ne5 {[%clk 0:02:14.5]} 15... Nd7
{[%clk 0:02:10.9]} 16. Rd1 {[%clk 0:01:40.2]} 16... Qc7 {[%clk 0:02:01.7]} 17.
Nxd7 {[%clk 0:01:04.6]} 17... Qxd7 {[%clk 0:02:02.4]} 18. Nc5 {[%clk 0:01:02.7]}
18... Qc7 {[%clk 0:02:03.6]} 19. Bh5 {[%clk 0:00:56.4]} 19... Rd8 {[%clk
0:01:20]} 20. Nxe6 {[%clk 0:00:38.3]} 20... Qd6 {[%clk 0:01:21.2]} 21. Qf5
{[%clk 0:00:16]} 21... Bc8 {[%clk 0:00:55.1]} 22. Ng7+ {[%clk 0:00:12.3]} 22...
Kf8 {[%clk 0:00:55.9]} 23. Qxf7# {[%clk 0:00:13.6]} 1-0

[Event "*** Titled Tuesday Blitz"]
[Site "Chess.com"]
[Date "2019.03.05"]
[Round "2"]
[White "Alexander_Donchenko"]
[Black "JoachimMouhamad"]
[Result "1-0"]
[WhiteElo "2732"]
[BlackElo "2314"]
[TimeControl "180+2"]
[EndTime "13:22:05 PST"]
[Termination "Alexander_Donchenko won by resignation"]

1. Nf3 {[%clk 0:03:01.9]} 1... Nf6 {[%clk 0:02:59.3]} 2. g3 {[%clk 0:03:03.4]}
2... g6 {[%clk 0:03:00.5]} 3. Bg2 {[%clk 0:03:04.9]} 3... Bg7 {[%clk 0:03:01.9]}
4. O-O {[%clk 0:03:06.7]} 4... O-O {[%clk 0:03:03.5]} 5. d4 {[%clk 0:03:08.4]}
5... d6 {[%clk 0:03:00]} 6. b3 {[%clk 0:03:09.3]} 6... a5 {[%clk 0:02:53.6]} 7.
a4 {[%clk 0:03:07.7]} 7... Nc6 {[%clk 0:02:52.4]} 8. Bb2 {[%clk 0:03:07.1]} 8...
Bf5 {[%clk 0:02:52.8]} 9. Nbd2 {[%clk 0:03:04.5]} 9... Nb4 {[%clk 0:02:50.7]}
10. Ne1 {[%clk 0:03:04.6]} 10... d5 {[%clk 0:02:43.6]} 11. c3 {[%clk 0:02:58.2]}
11... Nc6 {[%clk 0:02:36.3]} 12. Nd3 {[%clk 0:02:59.1]} 12... Ne4 {[%clk
0:02:26.4]} 13. Nxe4 {[%clk 0:02:53.8]} 13... Bxe4 {[%clk 0:02:26.3]} 14. f3
{[%clk 0:02:54.8]} 14... Bf5 {[%clk 0:02:18.9]} 15. e4 {[%clk 0:02:55.3]} 15...
Bc8 {[%clk 0:01:46.7]} 16. e5 {[%clk 0:02:55.1]} 16... Bf5 {[%clk 0:01:45.7]}
17. g4 {[%clk 0:02:54.9]} 17... Bc8 {[%clk 0:01:41.7]} 18. f4 {[%clk 0:02:54.9]}
18... e6 {[%clk 0:01:42]} 19. g5 {[%clk 0:02:50.1]} 19... Ne7 {[%clk 0:01:31.4]}
20. h4 {[%clk 0:02:48.2]} 20... h5 {[%clk 0:01:28.6]} 21. gxh6 {[%clk
0:02:47.3]} 21... Bxh6 {[%clk 0:01:29.8]} 22. h5 {[%clk 0:02:30.4]} 22... Nf5
{[%clk 0:01:31.1]} 23. Qf3 {[%clk 0:02:14.9]} 23... b6 {[%clk 0:01:31.3]} 24.
Ba3 {[%clk 0:02:14.5]} 24... Re8 {[%clk 0:01:29.8]} 25. Bh3 {[%clk 0:02:08.5]}
25... Qh4 {[%clk 0:01:27.1]} 26. hxg6 {[%clk 0:02:04.3]} 26... fxg6 {[%clk
0:01:25.5]} 27. Ra2 {[%clk 0:02:04.5]} 27... Kh7 {[%clk 0:01:18.6]} 28. Rh2
{[%clk 0:01:59.4]} 28... Qg3+ {[%clk 0:01:16.5]} 29. Qxg3 {[%clk 0:01:58.7]}
29... Nxg3 {[%clk 0:01:18.4]} 30. Rf3 {[%clk 0:01:56]} 30... Nf5 {[%clk
0:01:04.1]} 31. Bxf5 {[%clk 0:01:45.7]} 31... gxf5 {[%clk 0:01:05.2]} 32. Rfh3
{[%clk 0:01:47.1]} 32... Rg8+ {[%clk 0:01:06.5]} 33. Kf2 {[%clk 0:01:48.8]}
33... Rg6 {[%clk 0:01:08]} 34. Be7 {[%clk 0:01:50.4]} 34... Ba6 {[%clk
0:01:06.2]} 35. Ne1 {[%clk 0:01:34.7]} 35... Rag8 {[%clk 0:00:51.1]} 36. Bg5
{[%clk 0:01:33.1]} 1-0

[Event "*** Titled Tuesday Blitz"]
[Site "Chess.com"]
[Date "2019.03.05"]
[Round "2"]
[White "dopolian"]
[Black "Denis_Palkovich"]
[Result "1-0"]
[WhiteElo "2170"]
[BlackElo "2248"]
[TimeControl "180+2"]
[EndTime "13:22:08 PST"]
[Termination "dopolian won by resignation"]

1. e4 {[%clk 0:03:01.9]} 1... c6 {[%clk 0:03:00.4]} 2. Nc3 {[%clk 0:03:02.6]}
2... d5 {[%clk 0:03:01.8]} 3. Nf3 {[%clk 0:03:04.1]} 3... dxe4 {[%clk
0:03:02.3]} 4. Nxe4 {[%clk 0:03:06]} 4... Nf6 {[%clk 0:03:03]} 5. Nxf6+ {[%clk
0:03:06.9]} 5... exf6 {[%clk 0:03:02.9]} 6. d4 {[%clk 0:03:08.1]} 6... Bf5
{[%clk 0:03:02.3]} 7. Bd3 {[%clk 0:03:08.8]} 7... Bxd3 {[%clk 0:03:02.7]} 8.
Qxd3 {[%clk 0:03:10.7]} 8... Bd6 {[%clk 0:03:04.1]} 9. O-O {[%clk 0:03:11.6]}
9... O-O {[%clk 0:03:05.5]} 10. c4 {[%clk 0:03:12.7]} 10... Nd7 {[%clk
0:03:05.9]} 11. Be3 {[%clk 0:03:09.6]} 11... Re8 {[%clk 0:03:04.4]} 12. Rfd1
{[%clk 0:03:06.5]} 12... Qc7 {[%clk 0:03:04.9]} 13. g3 {[%clk 0:03:03.3]} 13...
g6 {[%clk 0:02:59.4]} 14. c5 {[%clk 0:03:01.9]} 14... Bf8 {[%clk 0:02:59.6]} 15.
b4 {[%clk 0:02:58.9]} 15... a6 {[%clk 0:02:57.3]} 16. Bf4 {[%clk 0:02:58.5]}
16... Qc8 {[%clk 0:02:50.6]} 17. d5 {[%clk 0:02:56.5]} 17... Ne5 {[%clk
0:02:39.9]} 18. Qc3 {[%clk 0:02:39.9]} 18... cxd5 {[%clk 0:02:32.9]} 19. Nxe5
{[%clk 0:02:35.7]} 19... fxe5 {[%clk 0:02:33.2]} 20. Bxe5 {[%clk 0:02:36.9]}
20... Qe6 {[%clk 0:02:26.4]} 21. Re1 {[%clk 0:02:33.2]} 21... Qf5 {[%clk
0:02:13.3]} 22. Bd4 {[%clk 0:02:28.6]} 22... Re4 {[%clk 0:02:12]} 23. f3 {[%clk
0:02:24.9]} 23... Rxd4 {[%clk 0:01:53.6]} 24. Qxd4 {[%clk 0:02:25.7]} 24... Bg7
{[%clk 0:01:53.7]} 25. Qe3 {[%clk 0:02:11]} 25... Bxa1 {[%clk 0:01:52.3]} 26.
Rxa1 {[%clk 0:02:12.9]} 26... d4 {[%clk 0:01:53]} 27. Qxd4 {[%clk 0:02:10.2]}
27... Qxf3 {[%clk 0:01:53.3]} 28. Re1 {[%clk 0:02:06.7]} 28... Qc6 {[%clk
0:01:42.2]} 29. Qe4 {[%clk 0:01:57]} 29... Qxe4 {[%clk 0:01:33.9]} 30. Rxe4
{[%clk 0:01:57.7]} 30... a5 {[%clk 0:01:34.9]} 31. b5 {[%clk 0:01:48.8]} 31...
Rc8 {[%clk 0:01:36.1]} 32. Rc4 {[%clk 0:01:49.3]} 32... f5 {[%clk 0:01:34]} 33.
a4 {[%clk 0:01:49.1]} 33... Kf7 {[%clk 0:01:35.3]} 34. c6 {[%clk 0:01:50]} 34...
bxc6 {[%clk 0:01:36]} 35. bxc6 {[%clk 0:01:44.1]} 35... Ke6 {[%clk 0:01:36.8]}
36. Rc5 {[%clk 0:01:43.8]} 36... Kd6 {[%clk 0:01:36.3]} 37. Rxa5 {[%clk
0:01:44.6]} 37... Rxc6 {[%clk 0:01:37.9]} 38. Ra7 {[%clk 0:01:45.2]} 38... Rc7
{[%clk 0:01:38.6]} 39. Rxc7 {[%clk 0:01:33.7]} 39... Kxc7 {[%clk 0:01:39.5]} 40.
Kf2 {[%clk 0:01:35.2]} 40... Kb6 {[%clk 0:01:41.1]} 41. Ke3 {[%clk 0:01:35.3]}
41... g5 {[%clk 0:01:36.2]} 42. Kd4 {[%clk 0:01:27]} 42... Ka5 {[%clk
0:01:37.5]} 43. Ke5 {[%clk 0:01:27.5]} 43... f4 {[%clk 0:01:38.1]} 44. gxf4
{[%clk 0:01:26.8]} 44... gxf4 {[%clk 0:01:39.7]} 45. Kxf4 {[%clk 0:01:28.2]}
45... Kxa4 {[%clk 0:01:40.8]} 46. Kg5 {[%clk 0:01:29.7]} 46... Kb5 {[%clk
0:01:39.3]} 47. Kh6 {[%clk 0:01:30.8]} 47... Kc5 {[%clk 0:01:40.8]} 48. Kxh7
{[%clk 0:01:32.3]} 48... Kd5 {[%clk 0:01:42.3]} 49. Kg6 {[%clk 0:01:29.7]} 49...
Ke6 {[%clk 0:01:43]} 50. h4 {[%clk 0:01:30.7]} 50... Ke7 {[%clk 0:01:44.6]} 51.
Kg7 {[%clk 0:01:31.7]} 1-0

[Event "*** Titled Tuesday Blitz"]
[Site "Chess.com"]
[Date "2019.03.05"]
[Round "2"]
[White "BlackBoarder"]
[Black "ENEASZ"]
[Result "0-1"]
[WhiteElo "2550"]
[BlackElo "2352"]
[TimeControl "180+2"]
[EndTime "13:22:13 PST"]
[Termination "ENEASZ won by checkmate"]

1. e4 {[%clk 0:02:55.1]} 1... d6 {[%clk 0:02:59.1]} 2. d4 {[%clk 0:02:55.7]}
2... Nf6 {[%clk 0:02:59.6]} 3. Nc3 {[%clk 0:02:56.4]} 3... e5 {[%clk 0:03:01.2]}
4. Nf3 {[%clk 0:02:56.8]} 4... Nbd7 {[%clk 0:03:01.5]} 5. Bc4 {[%clk 0:02:56.7]}
5... Be7 {[%clk 0:03:02.5]} 6. O-O {[%clk 0:02:57.4]} 6... O-O {[%clk
0:03:03.5]} 7. a4 {[%clk 0:02:57.4]} 7... c6 {[%clk 0:03:02.7]} 8. a5 {[%clk
0:02:58.4]} 8... Nxe4 {[%clk 0:03:00.5]} 9. Nxe4 {[%clk 0:02:50.7]} 9... d5
{[%clk 0:03:01.5]} 10. Nc3 {[%clk 0:02:35.6]} 10... exd4 {[%clk 0:03:00.1]} 11.
Nxd5 {[%clk 0:02:15.8]} 11... cxd5 {[%clk 0:02:54.1]} 12. Bxd5 {[%clk
0:02:14.8]} 12... Nf6 {[%clk 0:02:55.5]} 13. Bb3 {[%clk 0:02:14]} 13... Bc5
{[%clk 0:02:44.7]} 14. Bg5 {[%clk 0:02:07]} 14... h6 {[%clk 0:02:45.4]} 15. Bh4
{[%clk 0:02:07.9]} 15... Bg4 {[%clk 0:02:46]} 16. Qd3 {[%clk 0:02:04.4]} 16...
Qd6 {[%clk 0:02:45.1]} 17. h3 {[%clk 0:01:58.5]} 17... Bh5 {[%clk 0:02:45.3]}
18. g4 {[%clk 0:01:35.9]} 18... Nxg4 {[%clk 0:02:46.1]} 19. hxg4 {[%clk
0:01:34.8]} 19... Bxg4 {[%clk 0:02:48]} 20. Nh2 {[%clk 0:01:29.9]} 20... Bd7
{[%clk 0:02:46.5]} 21. Bg3 {[%clk 0:01:18.3]} 21... Qf6 {[%clk 0:02:45.5]} 22.
Qf3 {[%clk 0:01:15.9]} 22... Qg5 {[%clk 0:02:40.4]} 23. Qxb7 {[%clk 0:01:11.3]}
23... Bh3 {[%clk 0:02:40.4]} 24. Rfd1 {[%clk 0:01:04.6]} 24... d3 {[%clk
0:02:41.5]} 25. Rxd3 {[%clk 0:01:02.3]} 25... Rad8 {[%clk 0:02:33]} 26. Qf3
{[%clk 0:00:25.1]} 26... Rxd3 {[%clk 0:02:22.4]} 27. cxd3 {[%clk 0:00:26.2]}
27... Kh8 {[%clk 0:02:14.1]} 28. Nf1 {[%clk 0:00:24.2]} 28... f5 {[%clk
0:02:13.2]} 29. Qf4 {[%clk 0:00:18.9]} 29... Qg6 {[%clk 0:02:06.8]} 30. Re1
{[%clk 0:00:17.6]} 30... Qc6 {[%clk 0:01:57.5]} 31. Re4 {[%clk 0:00:02.5]} 31...
fxe4 {[%clk 0:01:55.8]} 32. Qh4 {[%clk 0:00:03.6]} 32... Bxf1 {[%clk 0:01:49.1]}
33. Kxf1 {[%clk 0:00:04.8]} 33... exd3 {[%clk 0:01:50.4]} 34. Qc4 {[%clk
0:00:02]} 34... Qh1# {[%clk 0:01:46.9]} 0-1